Cogmind - Beta 10.2 @@@ ROGUE MODE // 2022.02.26 @ 20:05:16 Player: W_W Result: Destroyed by G-47 Trooper with Particle Gun Performance ------------- Evolutions (2) 1000 Regions Visited (7) 1400 Robots Destroyed (99) 495 Value Destroyed (3688) 3688 Prototype IDs (0) 0 Alien Tech Used (0) 0 Bonus (1410) 1410 TOTAL SCORE: 7993 Bonus ------- High Alert Combat Kills 602 Follower Combat Kills 108 Entered Garrisons 200 Used RIF Installer 500 Cogmind --------- Core Integrity 0/550 Matter 157/300 Energy 50/100 System Corruption 0% Temperature Cool (18) Movement Core (1200) Ox23 Location -8/Materials Parts ------- > --- POWER (1) -------- (None) > --- PROPULSION (4) --- (None) > --- UTILITY (4) ------ Large Storage Unit Large Storage Unit High-capacity Storage Unit Improved ECM Suite > --- WEAPON (2) ------- Power Sword Power Sword > --- INVENTORY (24) --- Light Nuclear Core High-capacity Matter Pod (200) High-capacity Matter Pod (173) Advanced Sensor Array Launcher Loader Light Armor Plating Reactive Plating Relay Coupler [NC] (22) Relay Coupler [NC] (32) Relay Coupler [ARC] (11) Relay Coupler [Grunt] (31) Relay Coupler [Grunt] (29) Relay Coupler [Sentry] (18) Relay Coupler [Demolisher] (22) Relay Coupler [Hunter] (16) Heavy Particle Cannon Improved Datajack Heavy Explosive Trap Heavy Explosive Trap Heavy Explosive Trap Peak State ------------ > --- POWER ------------ Ion Engine > --- PROPULSION ------- Light Treads Light Treads Advanced Treads Advanced Treads > --- UTILITY ---------- Large Storage Unit Large Storage Unit Large Storage Unit High-capacity Storage Unit > --- WEAPON ----------- Battle Cannon Rocket Launcher > --- INVENTORY -------- Ion Engine Light Nuclear Core Light Treads High-capacity Matter Pod High-capacity Matter Pod Advanced Sensor Array Improved ECM Suite Light Armor Plating Light Armor Plating Reactive Plating Relay Coupler [NC] Relay Coupler [ARC] Relay Coupler [ARC] Relay Coupler [Duelist] Relay Coupler [Sentry] Relay Coupler [Hunter] Relay Coupler [Hunter] Beam Cannon Heavy Particle Cannon Heavy Particle Cannon Heavy Assault Rifle Grenade Launcher Rocket Launcher Rocket Launcher Rocket Launcher Improved Datajack Katana Heavy Explosive Trap Heavy Explosive Trap Heavy Explosive Trap [Rating: 25] Favorites ----------- Power Ion Engine Engine Ion Engine Propulsion Light Treads Treads Light Treads Leg Aluminum Leg Utility Large Storage Unit Device Improved ECM Suite Storage Large Storage Unit Weapon Rocket Launcher Energy Gun EM Pulse Gun Energy Cannon Beam Cannon Ballistic Gun Assault Rifle Ballistic Cannon Battle Cannon Launcher Rocket Launcher Impact Weapon Heavy Flail Slashing Weapon Power Sword Build | -11 -10 -10 -10 -9 -8 -8 -8 ------- Run | Scr Mat Min Exi Min Mat Gar Mat Slots Evolved 4 | . . . . . 4 . . Power . | . . . . . . . . Propulsion 2 | . . . . . 2 . . Utility 2 | . . . . . 2 . . Weapon . | . . . . . . . . Parts Attached 71 | 8 10 1 . 5 10 26 11 Power 6 | 1 1 . . 1 . 2 1 Engine 6 | 1 1 . . 1 . 2 1 Core . | . . . . . . . . Reactor . | . . . . . . . . Propulsion 20 | 2 4 . . 1 3 10 . Treads 13 | 2 4 . . 1 3 3 . Leg 7 | . . . . . . 7 . Wheel . | . . . . . . . . Hover . | . . . . . . . . Flight . | . . . . . . . . Utility 9 | 3 3 . . . 2 . 1 Device 1 | . . . . . . . 1 Storage 8 | 3 3 . . . 2 . . Processor . | . . . . . . . . Hackware . | . . . . . . . . Protection . | . . . . . . . . Artifact . | . . . . . . . . Weapon 36 | 2 2 1 . 3 5 14 9 Energy Gun 2 | 2 . . . . . . . Energy Cannon 11 | . . 1 . . 3 3 4 Ballistic Gun 1 | . 1 . . . . . . Ballistic Cannon 4 | . . . . . 1 3 . Launcher 15 | . 1 . . 3 1 7 3 Special Weapon . | . . . . . . . . Impact Weapon 1 | . . . . . . 1 . Slashing Weapon 2 | . . . . . . . 2 Piercing Weapon . | . . . . . . . . Special Melee Weapon . | . . . . . . . . Unidentified Prototypes . | . . . . . . . . Parts Lost 23 | . 1 . . . 2 11 9 Power 4 | . . . . . 1 1 2 Propulsion 9 | . . . . . . 7 2 Utility . | . . . . . . . . Weapon 10 | . 1 . . . 1 3 5 Highest Loss Streak 9 | . 1 . . . 2 2 9 Average Slot Usage (%) 95 | . 96 100 100 100 97 92 69 Engine 11 | . 14 14 14 14 8 8 8 Treads 23 | . 28 28 28 28 34 17 . Leg 4 | . . . . . . 11 8 Storage 31 | . 28 28 28 28 35 36 35 Energy Gun 3 | . 17 . . . . . . Energy Cannon 5 | . . 7 14 5 6 4 3 Ballistic Gun 2 | . . 14 14 2 . . . Ballistic Cannon 2 | . . . . . 7 5 4 Launcher 8 | . 7 6 . 19 3 7 8 Naked Turns . | . . . . . . . . Heaviest Build 97 | 12 59 59 58 63 94 97 95 Greatest Support 84 | 40 40 40 40 40 84 84 23 Greatest Overweight (x) 31 | 3 2 1 1 1 1 31 31 Average Overweight (x) 1 | . . 1 1 1 1 2 6 Largest Inventory Capacity 30 | 6 18 18 18 18 30 30 30 Average Capacity 22 | 5 13 18 18 18 29 30 29 Most Carried 30 | 2 16 18 18 18 28 30 30 Average Carried 21 | . 11 16 18 18 23 29 28 Final Capacity 30 | 6 18 18 18 18 30 30 24 Final Carried 30 | 2 14 18 18 18 27 30 21 Class Distribution -------------------- 52% | Mutant 33% | Bothacker-Mutant 14% | Hauler-Mutant Dominant Class ---------------- Mutant | -10/Materials Mutant | -10/Mines Mutant | -10/Exiles Mutant | -9/Mines Hauler-Mutant | -8/Materials Bothacker-Mutant | -8/Garrison Bothacker-Mutant | -8/Materials Resources | -11 -10 -10 -10 -9 -8 -8 -8 ----------- Run | Scr Mat Min Exi Min Mat Gar Mat Matter Collected 2935 | 270 371 86 296 246 205 1239 222 Remotely . | . . . . . . . . Salvage Created 2449 | 254 454 86 . 409 220 885 141 Parts 151 | 22 35 2 . 15 17 52 8 Haulers Intercepted 3 | . 2 . . . 1 . . Recyclers Shooed 6 | . 5 . . 1 . . . Parts Field Recycled . | . . . . . . . . Retrieved Matter . | . . . . . . . . Parts Self-Destructed . | . . . . . . . . Prevented . | . . . . . . . . Kills | -11 -10 -10 -10 -9 -8 -8 -8 ------- Run | Scr Mat Min Exi Min Mat Gar Mat Combat Hostiles Destroyed 79 | . 11 2 . 13 7 42 4 Melee 1 | . . . . . . 1 . Guns 4 | . 2 1 . 1 . . . Cannons 21 | . . 1 . 4 4 11 1 AOE 53 | . 9 . . 8 3 30 3 Classes Destroyed 14 | 3 5 . . 2 2 2 . Worker 4 | 2 1 . . 1 . . . Builder 4 | . 1 . . . 1 . 2 Tunneler 7 | 5 . . . 2 . . . Hauler 3 | . 2 . . . 1 . . Recycler 3 | 1 1 . . 1 . . . Watcher 4 | . 3 . . . 1 . . Swarmer 25 | . 8 . . . 3 14 . Grunt 28 | . 3 2 . 7 2 13 1 Brawler 4 | . . . . 1 . 2 1 Duelist 10 | . . . . . . 9 1 Sentry 3 | . . . . . 1 2 . Hunter 2 | . . . . . 1 . 1 Behemoth 2 | . . . . . . 2 . Assembled 5 | . . . . 5 . . . Best Kill Streak 10 | 8 8 2 . 3 4 10 3 Combat Bots Only 10 | . 5 2 . 3 3 10 3 Max Kills in Single Turn 6 | 1 3 1 . 2 3 6 1 Gunslinging . | . . . . . . . . Exploded 6 | . 3 . . 2 2 6 1 Melee 1 | . . . . . . 1 . Uniques/NPCs Destroyed . | . . . . . . . . Combat | -11 -10 -10 -10 -9 -8 -8 -8 -------- Run | Scr Mat Min Exi Min Mat Gar Mat Damage Taken 3552 | . 202 66 . 298 388 1738 860 Core 708 | . 36 . . 106 35 302 229 Absorbed by Shields 12 | . . . . . . 12 . Core Remaining (%) 71 | 100 . . . 43 . . . Volleys Fired 240 | 18 39 7 . 26 21 113 16 Largest 2 | 2 2 2 . 2 2 2 2 Hottest 150 | 80 80 80 . 80 99 150 135 Shots Fired 374 | 34 66 12 . 41 40 154 27 Gun 112 | 34 57 7 . 14 . . . Cannon 179 | . . 5 . 13 38 104 19 Launcher 83 | . 9 . . 14 2 50 8 Special . | . . . . . . . . Kinetic 105 | . . 7 . 14 19 62 3 Thermal 138 | 16 27 5 . 13 19 42 16 Explosive 83 | . 9 . . 14 2 50 8 Electromagnetic 48 | 18 30 . . . . . . Robot Hit Streak 19 | 7 7 6 . 19 14 11 8 Robot Miss Streak 6 | 3 5 2 . 3 3 6 1 Penetration Max . | . . . . . . . . Secondary Targets . | . . . . . . . . Shots Hit Robots 214 | 19 34 9 . 28 27 78 19 Core Hits 169 | 9 25 4 . 28 13 78 12 Critical Hits 1 | . . . . . 1 . . Critical Kills 1 | . . . . . 1 . . Critical Parts Destroyed . | . . . . . . . . Melee Attacks 5 | . . . . . . 5 . Impact 5 | . . . . . . 5 . Slashing . | . . . . . . . . Piercing . | . . . . . . . . Sneak Attacks . | . . . . . . . . Combat Hostiles . | . . . . . . . . Follow-up Attacks . | . . . . . . . . Damage Inflicted 8110 | 210 1214 123 . 903 652 4096 912 Guns 768 | 210 380 71 . 107 . . . Cannons 2073 | . . 52 . 215 502 1060 244 Explosions 4937 | . 784 . . 468 132 2885 668 Melee 151 | . . . . . . 151 . Ramming 181 | . 50 . . 113 18 . . Kinetic 1074 | . . 71 . 107 240 623 33 Thermal 1382 | 102 103 52 . 215 262 437 211 Explosive 4937 | . 784 . . 468 132 2885 668 Electromagnetic 385 | 108 277 . . . . . . Impact 151 | . . . . . . 151 . Slashing . | . . . . . . . . Piercing . | . . . . . . . . Highest Corruption 1 | . 1 1 1 1 . . . Average Corruption 1 | . 1 1 1 1 . . . Corruption Purged . | . . . . . . . . Effects 7 | . 2 . 1 4 . . . Message Errors 4 | . 2 . . 2 . . . Data Loss (minor) 2 | . . . 1 1 . . . Targeting Errors 1 | . . . . 1 . . . Overload Shots . | . . . . . . . . Overflow Damage 118 | . 28 . . 2 . 78 10 Projectiles 7 | . . . . 2 . 5 . Explosions 79 | . 28 . . . . 41 10 Melee 32 | . . . . . . 32 . Knockbacks 10 | . 1 . . 1 4 4 . Impact 3 | . 1 . . 1 . 1 . Kinetic 7 | . . . . . 4 3 . Secondary . | . . . . . . . . Self-Inflicted Damage 451 | . 17 . . 128 . 227 79 Shots 18 | . 1 . . 4 . 10 3 Rammed 22 | . 11 . . 11 . . . Targets Rammed 25 | . 11 . . 13 1 . . Kicked . | . . . . . . . . Crushed 3 | . . . . 2 1 . . Highest Temperature 642 | 126 180 117 . 207 392 642 284 Average Temperature 116 | 60 55 59 . 79 168 180 110 Received Heat Transfer 1154 | . 72 36 . 59 144 528 315 Effects 17 | . . . . 1 . 15 1 Energy Bleed 2 | . . . . . . 2 . Interference 4 | . . . . 1 . 2 1 Matter Decay 2 | . . . . . . 2 . Short Circuit 3 | . . . . . . 3 . Damage (minor) 3 | . . . . . . 3 . Damage (major) 2 | . . . . . . 2 . Damage (core) 1 | . . . . . . 1 . Siege Activations . | . . . . . . . . Robots Corrupted . | . . . . . . . . Combat Hostiles . | . . . . . . . . Parts Fried 1 | . 1 . . . . . . Impact Corruptions 1 | . . . . . . 1 . Robots Melted . | . . . . . . . . Combat Hostiles . | . . . . . . . . Parts Melted 2 | . . . . . 2 . . Heat Transferred 2658 | 225 250 111 . 444 555 703 370 Parts Sabotaged . | . . . . . . . . Parts Stolen . | . . . . . . . . Parts Stripped . | . . . . . . . . Power Chain Reactions . | . . . . . . . . Missiles Intercepted . | . . . . . . . . Alert | -11 -10 -10 -10 -9 -8 -8 -8 ------- Run | Scr Mat Min Exi Min Mat Gar Mat Peak Influence 1477 | 40 199 87 . 125 362 1477 856 Initial 719 | . 26 37 . . 6 94 719 Average 528 | 19 57 58 . 27 94 1069 767 Maximum Alert Level 4 | . . . . . 1 4 3 Low Security (%) 53 | 100 100 100 . 100 83 4 . Level 1 3 | . . . . . 16 4 . Level 2 5 | . . . . . . 11 . Level 3 12 | . . . . . . 22 100 Level 4 25 | . . . . . . 56 . Level 5 . | . . . . . . . . High Security . | . . . . . . . . Max Security . | . . . . . . . . Squads Dispatched 7 | . 1 . . 1 2 . 3 Investigation 1 | . . . . 1 . . . Extermination . | . . . . . . . . Reinforcement 3 | . 1 . . . 1 . 1 Assault . | . . . . . . . . Garrison 3 | . . . . . 1 . 2 Intercept . | . . . . . . . . Construction Impeded 1 | . . . . . . . 1 Haulers Reinforced . | . . . . . . . . Stealth | -11 -10 -10 -10 -9 -8 -8 -8 --------- Run | Scr Mat Min Exi Min Mat Gar Mat Distress Signals 3 | . . . . 3 . . . Communications Jammed . | . . . . . . . . Distress Signals . | . . . . . . . . Times Spotted 106 | . 19 2 . 12 16 49 8 Peak Tracking Total 8 | . 4 2 . 2 7 8 3 Tactical Retreats 13 | . 1 . . . . 11 1 Traps | -11 -10 -10 -10 -9 -8 -8 -8 ------- Run | Scr Mat Min Exi Min Mat Gar Mat Traps Triggered 12 | . 2 . . . . 10 . Indirectly . | . . . . . . . . Trap Hack Attempts . | . . . . . . . . Triggered . | . . . . . . . . Disarmed . | . . . . . . . . Reprogrammed . | . . . . . . . . Reused . | . . . . . . . . Traps Extracted . | . . . . . . . . Installed . | . . . . . . . . Triggered . | . . . . . . . . Machines | -11 -10 -10 -10 -9 -8 -8 -8 ---------- Run | Scr Mat Min Exi Min Mat Gar Mat Machines Disabled 12 | . 3 . . . 3 5 1 Max in Single Turn 2 | . 1 . . . 2 1 1 Garrison Relay 5 | . . . . . . 5 . Machines Sabotaged . | . . . . . . . . Garrisons Compromised . | . . . . . . . . Overloaded Fab Kills . | . . . . . . . . Fab Network Shutdowns . | . . . . . . . . Hacking | -11 -10 -10 -10 -9 -8 -8 -8 --------- Run | Scr Mat Min Exi Min Mat Gar Mat Machines Accessed 16 | . 7 . 4 2 3 . . Terminals 10 | . 7 . . 2 1 . . Fabricators . | . . . . . . . . Repair Stations 1 | . . . . . 1 . . Recycling Units . | . . . . . . . . Scanalyzers . | . . . . . . . . Garrison Access 1 | . . . . . 1 . . Total Hacks 40 | . 23 . 4 5 8 . . Successful 26 | . 12 . 4 3 7 . . Failed 14 | . 11 . . 2 1 . . Catastrophic 2 | . 2 . . . . . . Database Lockouts . | . . . . . . . . Manual 31 | . 23 . . 3 5 . . Terminals 33 | . 23 . . 5 5 . . Fabricators . | . . . . . . . . Repair Stations 2 | . . . . . 2 . . Recycling Units . | . . . . . . . . Scanalyzers . | . . . . . . . . Garrison Access 1 | . . . . . 1 . . Terminal Hacks 8 | . 2 . 4 1 1 . . Record 4 | . . . 4 . . . . Terminal Index 2 | . 1 . . . 1 . . Investigation Status 1 | . . . . 1 . . . Garrison Status 1 | . 1 . . . . . . Fabricator Hacks . | . . . . . . . . Repair Station Hacks 2 | . . . . . 2 . . Scan Component 1 | . . . . . 1 . . Repair 1 | . . . . . 1 . . Recycling Unit Hacks . | . . . . . . . . Scanalyzer . | . . . . . . . . Garrison Access Hacks 1 | . . . . . 1 . . Unlock Access 1 | . . . . . 1 . . Unauthorized Hacks 15 | . 10 . . 2 3 . . Terminals 15 | . 10 . . 2 3 . . Track 5 | . 3 . . 1 1 . . Assimilate 3 | . 2 . . . 1 . . Botnet 6 | . 5 . . . 1 . . Sabotage 1 | . . . . 1 . . . Fabricators . | . . . . . . . . Repair Stations . | . . . . . . . . Recycling Units . | . . . . . . . . Scanalyzers . | . . . . . . . . Garrison Access . | . . . . . . . . Data Cores Recovered . | . . . . . . . . Used . | . . . . . . . . Hacking Detections 11 | . 7 . . 1 3 . . Full Trace Events . | . . . . . . . . Feedback Events . | . . . . . . . . Feedback Blocked . | . . . . . . . . Robot Schematics Acquired . | . . . . . . . . Robots Built . | . . . . . . . . Matter . | . . . . . . . . Time . | . . . . . . . . Total Robot Build Rating . | . . . . . . . . Part Schematics Acquired . | . . . . . . . . Parts Built . | . . . . . . . . Matter . | . . . . . . . . Time . | . . . . . . . . Total Part Build Rating . | . . . . . . . . Parts Repaired 1 | . . . . . 1 . . Time 26 | . . . . . 26 . . Parts Recycled . | . . . . . . . . Recycled Matter . | . . . . . . . . Retrieved Matter . | . . . . . . . . Retrieved Components . | . . . . . . . . Parts Scanalyzed . | . . . . . . . . Part Schematics Acquired . | . . . . . . . . Parts Damaged . | . . . . . . . . Bothacking | -11 -10 -10 -10 -9 -8 -8 -8 ------------ Run | Scr Mat Min Exi Min Mat Gar Mat Used RIF Installer 1 | . . . . . . 1 . Robots Hacked . | . . . . . . . . Non-combat . | . . . . . . . . Combat . | . . . . . . . . Robot Hacks Applied . | . . . . . . . . Relay Couplers Released 21 | . . . . . . 21 . Machine Destruction 21 | . . . . . . 21 . Robots Rewired . | . . . . . . . . Allies Hacked . | . . . . . . . . Hacks Repelled . | . . . . . . . . Allies | -11 -10 -10 -10 -9 -8 -8 -8 -------- Run | Scr Mat Min Exi Min Mat Gar Mat Total Allies 5 | . . . . 5 . . . Largest Group 5 | . . . . 5 5 . . Highest-Rated Group 82 | . . . . 82 82 . . Highest-Rated Ally 31 | . . . . 31 31 . . Total Orders . | . . . . . . . . Ally Attacks 29 | . . . . 1 28 . . Total Damage 308 | . . . . 21 287 . . Kills 5 | . . . . 1 4 . . Allies Corrupted . | . . . . . . . . Allies Melted . | . . . . . . . . Intel | -11 -10 -10 -10 -9 -8 -8 -8 ------- Run | Scr Mat Min Exi Min Mat Gar Mat Robot Analysis Total . | . . . . . . . . Derelict Logs Recovered 1 | . . . . 1 . . . Drone Launches . | . . . . . . . . Drone Recoveries . | . . . . . . . . Exploration | -11 -10 -10 -10 -9 -8 -8 -8 ------------- Run | Scr Mat Min Exi Min Mat Gar Mat Turns Passed 8071 | 160 1457 104 943 1555 449 3222 181 Spaces Moved 3772 | 61 760 45 524 768 208 1373 33 Core 22 | 9 . . . . . 10 3 Treads 3114 | 52 760 45 524 768 208 757 . Legs 636 | . . . . . . 606 30 Wheels . | . . . . . . . . Hover . | . . . . . . . . Flight . | . . . . . . . . Fastest Speed 50 | 50 160 180 180 180 172 170 240 Average Speed 186 | 157 168 180 180 180 172 201 362 Slowest Speed 1600 | 200 200 180 180 180 180 1600 1600 Overloaded Moves . | . . . . . . . . Propulsion Burnouts . | . . . . . . . . Robots Hopped . | . . . . . . . . Cave-ins Triggered . | . . . . . . . . Exploration Rate (%) 54 | 4 99 16 93 99 22 91 9 Regions Visited 7 Branch Regions 3 Pre-discovered Areas . | . . . . . . . . Known Exits Taken 1 | . . . . . 1 . . Unknown Exits Taken 5 | 1 1 1 1 1 . . . Scrap Searched 2 | . . . . 2 . . . Spaces Dug 60 | . 14 . . . . 46 . Terrain Destroyed 495 | . 48 . . 152 3 244 48 Melee . | . . . . . . . . Projectile 4 | . . . . . 2 . 2 AOE 491 | . 48 . . 152 1 244 46 Terrain Rammed . | . . . . . . . . Walls Destroyed . | . . . . . . . . Machines Disabled . | . . . . . . . . Actions | -11 -10 -10 -10 -9 -8 -8 -8 --------- Run | Scr Mat Min Exi Min Mat Gar Mat Total 4411 | 87 870 56 525 892 254 1661 66 Wait 187 | . 23 . . 72 . 87 5 Move 3765 | 60 759 44 523 767 207 1372 33 Hop . | . . . . . . . . Pick Up 63 | 1 17 4 1 3 14 23 . Fast Attach 16 | 7 3 . . 1 1 4 . Attach 20 | . 1 . . . 4 8 7 Detach 1 | . 1 . . . . . . Swap 35 | 1 6 1 . 4 5 14 4 Drop 36 | . 10 . 1 6 1 17 1 Fire 240 | 18 39 7 . 26 21 113 16 Melee 5 | . . . . . . 5 . Ram . | . . . . . . . . Kick . | . . . . . . . . Crush 25 | . 11 . . 13 1 . . Escape Stasis 18 | . . . . . . 18 . Rewire . | . . . . . . . . Trap . | . . . . . . . . Miscellaneous . | . . . . . . . . Route ------- -11/Scrapyard -10/Materials (discovered 4 exits: [*Mat x3] / [*Min]) -10/Mines -10/Exiles (discovered 2 exits: *Min x2) -9/Mines (discovered 2 exits: *Mat x2) -8/Materials -8/Garrison (discovered 3 exits: [*Mat x3]) -8/Materials History --------- Turn | Location | Event 16 | -11/Scrapyard | Discovered new exit (range 16) 161 | -11/Scrapyard | Entered Materials 309 | -10/Materials | Build established: Mutant 449 | -10/Materials | Discovered new exit (range 6) 944 | -10/Materials | Discovered new exit (range 11) 1059 | -10/Materials | Discovered new exit (range 15) 1350 | -10/Materials | Discovered new exit (range 16) 1618 | -10/Materials | Entered Mines 1640 | -10/Mines | Found a hidden stash of uninstalled traps 1715 | -10/Mines | Deemed a non-threat by the Exiles lab entrance 1715 | -10/Mines | Discovered new exit (range 5) 1722 | -10/Mines | Entered Exiles 1722 | -10/Exiles | Found Exiles lab abandoned 1751 | -10/Exiles | Discovered new exit (range 15) 2638 | -10/Exiles | Discovered new exit (range 11) 2665 | -10/Exiles | Entered Mines 2666 | -9/Mines | Assembled infested the area 2673 | -9/Mines | Learned Materials stockpile data 2990 | -9/Mines | Discovered new exit (range 6) 3130 | -9/Mines | A weapon hastily lodged in a ceiling crevice suddenly fell to the ground 3198 | -9/Mines | Core integrity fell below 50% 3227 | -9/Mines | Discovered new exit (range 8) 3406 | -9/Mines | Received a Rocket Launcher from a helpful Derelict 3729 | -9/Mines | Assisted by bots powering up and referring to "LRC-V3" 4220 | -9/Mines | Entered Materials 4220 | -8/Materials | Accompanied by 5 allies 4220 | -8/Materials | Evolved 4 slots: Propulsion x2, Utility x2 4225 | -8/Materials | Led the pair of lost Derelicts to an unsafe place 4378 | -8/Materials | Repaired Lgt. Armor Plating 4518 | -8/Materials | Build established: Hauler-Mutant 4565 | -8/Materials | Identified exit to Garrison 4597 | -8/Materials | Garrison activated, responded to threat 4669 | -8/Materials | Entered Garrison 4678 | -8/Garrison | Installed Relay Interface Framework 4702 | -8/Garrison | Triggered checkpoint 4800 | -8/Garrison | Triggered checkpoint 4842 | -8/Garrison | Destroyed 10 combat bots 5066 | -8/Garrison | Triggered checkpoint 5109 | -8/Garrison | Garrison Relay disabled 5220 | -8/Garrison | Triggered checkpoint 5278 | -8/Garrison | Triggered checkpoint 5601 | -8/Garrison | Discovered new exit (range 12) 5671 | -8/Garrison | Build established: Bothacker-Mutant 5722 | -8/Garrison | Triggered checkpoint 5775 | -8/Garrison | Discovered new exit (range 9) 5816 | -8/Garrison | Triggered checkpoint 5834 | -8/Garrison | Triggered checkpoint 5883 | -8/Garrison | Garrison Relay disabled 6065 | -8/Garrison | Triggered checkpoint 6187 | -8/Garrison | Discovered new exit (range 12) 6284 | -8/Garrison | Core integrity fell below 50% 6490 | -8/Garrison | Triggered checkpoint 6702 | -8/Garrison | Spotted B-75 Beast 6703 | -8/Garrison | Spotted B-75 Beast 6899 | -8/Garrison | Garrison Relay disabled 7064 | -8/Garrison | Destroyed B-75 Beast 7345 | -8/Garrison | Destroyed B-75 Beast 7420 | -8/Garrison | Found Launcher Loader 7891 | -8/Garrison | Entered Materials 7969 | -8/Materials | Garrison activated, responded to threat 8035 | -8/Materials | Core integrity fell below 20% 8072 | -8/Materials | Destroyed by G-47 Trooper with Particle Gun Last Messages --------------- 08039_ Atomic Centrifuge disabled. 08041_ ALERT: Construction progress impeded, dispatching reinforcements to local area. 08042_ U-05 Engineer destroyed. 08045_ The unstable cave ceiling collapses. 08045_ Destroyed Particle Gun. 08050_ The unstable cave ceiling collapses. 08050_ U-05 Engineer lays Concrete. 08051_ Beam Cannon destroyed. 08052_ U-05 Engineer lays Concrete. 08054_ U-05 Engineer builds a Door. 08055_ Rocket Launcher destroyed. 08058_ U-05 Engineer builds a Wall. 08061_ U-05 Engineer lays Concrete. 08062_ U-05 Engineer builds a Wall. 08064_ Dropped Lrg. Storage Unit. 08065_ The unstable cave ceiling collapses. 08065_ Identified Imp. ECM Suite. 08066_ Ion Engine destroyed. 08070_ U-05 Engineer lays Concrete. Map ----- +----------------------------------------------------+ | ??????????????????????????????????? | | ??????????????????????????????????? | | ??????????????????????????????????? | | ??????????????????????????????????? | | ??????????????????????????????????? | | ??????????????????????????????????? | | ??????????????????????????????????? | | ??????????????????????????????????? | | ??????????????????????????????????? | | ??????????????????????????????????? | | ???????? ???????????????????????? | | ???????T ???????????????????????? | | ??????"" [ ###????????????????????? | | ???#### =%[# ????????????????????? | | ???= # ""???????????????????? | | ?? = ""???????????????????? | | ???"" %+ "???????????????????? | | ???R u# ????????????????????? | | ????" u#* ????????????????????? | | ????? #=#????????????????????? | | ###### # #######??????????????? | | # # ???????????????? | | # gY """ ???????????????? | | # g G" #??????????????? | | # ! """ #??????????????? | | # # %@# #??????????????? | | # ! #???????????????????? | | ??#### #???????????????????? | | ?????# ###???????????????????? | | ?????## ##????????????????????? | | ####### ##########?????????????? | | # # # #?????????????? | | # """ # # #?????????????? | | # """ # # #?????????????? | | # """ # # #?????????????? | | # # + #?????????????? | | # """ # # #?????????????? | | # """ + # #?????????????? | | # """ # # #?????????????? | | # # # #?????????????? | | # """ # ##########?????????????? | | #! """ #####??????????????????????? | | # """ #??????????????????????????? | | # #??????????????????????????? | | ########??????????????????????????? | | ??????????????????????????????????? | | ??????????????????????????????????? | | ??????????????????????????????????? | | ??????????????????????????????????? | | ??????????????????????????????????? | +----------------------------------------------------+ Best States ------------- Heat Dissipation 31 Energy Generation 12 Energy Capacity 265 Matter Stores 300 Matter Capacity 400 Sight Range 16 Terrain Scan Density 10 ECM Strength 2 Evasion (%) 40 Recoil Reduction 4 Item Schematics ----------------- None Robot Schematics ------------------ None Fabricated ------------ Nothing Alien Tech Used ----------------- None Achievements -------------- None Challenges ------------ None Game ------ Seed SystemBlastRay Manual? 0 Play Time 00:57:46 Cumulative 138.0 hours Start 2022.02.26 @ 18:51:25 End 2022.02.26 @ 20:05:16 Sessions 3 Manual Loads 0 Difficulty Rogue Special Mode None Game No. 106 Rogue 106 Adventurer 0 Explorer 0 Win Type - Total 0 Types 0/0/0/0/0/0/0/0/0 Lore% 46 Gallery% 57 Achievement% 36 Wizard Run 0 Options --------- ASCII 0 Keyboard 0 Movement Numpad Keybinds 0 Fullscreen 1 Font 18/SmallcapsGlow Map View 76x50 Tactical HUD 1 Map Filters NONE Filters NONE Steam 1 RUN: 8d09a06f-4f48-4a7b-b935-1425057552b4